{"text_format":"1","workbook":"xlsx","n_sheets":1,"sheets":["NOTAS"],"not_rendered":{"charts":0,"images":0,"macros":1,"external_links":0,"defined_names":1,"comments":0,"pivot_tables":0},"unopened":[],"bounds":{"document_bytes":16777216,"sheet_cells":100000,"rows_first":2000,"rows_last":500,"rows_between":2000,"halvings":0,"cell_chars":16384,"cell_head_chars":4096},"cells_cut":0,"cells_raw":0,"read":"whole","date_system":"1900"}

{"sheet":"NOTAS","index":0,"n_rows":25,"n_cols":8,"rows_kept":25,"cut":false,"hidden":false,"merged":[[0,7,1,7],[0,0,1,0],[0,1,1,1],[0,2,0,4],[0,5,1,5],[0,6,1,6]]}
["N°","Nombre","Tareas académicas (30%)",null,null,"Examen Parcial (30%)","Examen Final (40%)","Promedio Final"]
[null,null,"TA1","TA2","TA3"]
[1,"ALAYO SALLES, MARIA ALEJANDRA",13,9,10,16,15,{"$f":"NOTA_FINAL(C3,D3,E3,F3,G3)","v":14}]
[2,"ARGUEDAS DULANTO, AUGUSTO ARTURO",8,10,14,8,19,{"$f":"NOTA_FINAL(C4,D4,E4,F4,G4)","v":13}]
[3,"BARBOZA MORALES, IRVING YAMAL",13,20,16,9,12,12]
[4,"CASTELO RAMIREZ, FREDY ALEXANDER",9,18,16,16,13,14]
[5,"CHAMORRO FERNANDEZ, ELIAS SAMUEL",8,9,13,17,16,14]
[6,"CHAVEZ CHACALIAZA, ROSA ZAHADITH",15,9,8,14,14,13]
[7,"Fernandez Avila, Diego Alfredo ",9,15,17,15,15,15]
[8,"GAVILANO APARCANA, SEMIRAMIS OFELIA",12,17,15,10,19,15]
[9,"GU KU, JUAN PABLO",8,15,17,12,18,15]
[10,"GUZMAN YAMUNAQUE, SYLVIA JANNET",15,20,9,8,10,11]
[11,"HANANEL ALVARADO, MENAHEM GUSTAVO HUMBERTO",9,11,16,11,11,11]
[12,"Huamaní Bilbao, Eduardo Alfredo",11,13,15,10,16,13]
[13,"MOLINA CONTRERAS, MATEO LEONARDO",10,15,8,16,13,13]
[14,"ORTEGA STEER, BRATZZO",8,9,15,16,11,12]
[15,"RAMOS FLORES, SANTIAGO RODOLFO",15,20,10,20,16,17]
[16,"SOTOMAYOR DIAZ, GABRIEL MARTIN",9,14,18,10,8,10]
[17,"TORRES ARRIETA, CARLOS ALBERTO",18,13,18,13,12,14]
[18,"VASQUEZ AREVALO, ANA SILVIA",16,13,13,12,11,12]
[19,"YACTAYO CALDERON, JHONNY WILLIANS",16,18,18,14,18,17]
["*Nota mínima aprobatoria 13"]
[null,null,null,null,null,null,"APROBADOS",{"$f":"APROBADOS(H3:H21)","v":13}]
[null,null,null,null,null,null,"DESAPROBADOS",{"$f":"DESAPROBADOS(H3:H21)","v":6}]
[null,null,null,null,null,null,"TOTAL",{"$f":"SUM(H23:H24)","v":19}]